Cogmind - Beta 13 X2 @@@ ROGUE MODE // 2024.01.20 @ 16:47:38 Player: Minty Result: Destroyed by UC-CIH(z) with Makeshift Hammer Performance ------------- Evolutions (3) 1500 Regions Visited (9) 1800 Robots Destroyed (74) 370 Value Destroyed (2298) 2298 Prototype IDs (26) 520 Alien Tech Used (0) 0 Bonus (495) 495 TOTAL SCORE: 6983 Bonus ------- Aligned with FarCom 300 Met Imprinter 300 Friendly Fire -105 Cogmind --------- Core Integrity 0/700 Matter 230/300 Energy 93/100 System Corruption 9% Temperature Cool (0) Movement Core (50) Location -7/Zion Parts ------- > --- POWER (1) -------- (None) > --- PROPULSION (4) --- (None) > --- UTILITY (6) ------ (None) > --- WEAPON (2) ------- (None) > --- INVENTORY (5) ---- Improved Deuterium Engine Light Fission Core Makeshift Light Armor Plating Layered Light Armor Plating Relay Coupler [Programmer] (69) Peak State ------------ > --- POWER ------------ Angular Momentum Engine > --- PROPULSION ------- Makeshift Leg Makeshift Leg Makeshift Leg Makeshift Leg > --- UTILITY ---------- Large Storage Unit Advanced Targeting Computer Armor Integrity Analyzer Particle Charger Makeshift Light Armor Plating Layered Light Armor Plating > --- WEAPON ----------- Plasma Cannon Plasma Cannon > --- INVENTORY -------- Improved Deuterium Engine Improved Deuterium Engine Light Fission Core Armored Treads Armored Treads Improved Heat Sink Improved Propulsion Shielding Layered Light Armor Plating Hacking Suite System Shield System Shield Relay Coupler [Programmer] Hacking Drone Bay Enhanced Flamer Enhanced Flamer [Rating: 54] Favorites ----------- Power Reinforced Deuterium Engine Engine Reinforced Deuterium Engine Power Core Nuclear Core Propulsion Aluminum Leg Treads Armored Treads Leg Aluminum Leg Utility Large Storage Unit Device Improved Cooling System Storage Large Storage Unit Processor Armor Integrity Analyzer Hackware System Shield Protection Improved Utility Shielding Weapon Plasma Cannon Energy Gun High-powered Field Laser Energy Cannon Plasma Cannon Ballistic Gun Makeshift Shrapnel Gun Ballistic Cannon Assault Cannon Special Weapon Enhanced Flamer Build | -11 -10 -10 -10 -9 -8 -7 -7 -7 -7 ------- Run | Yrd Mat Min Exi Min Mat Fac Low Low Zio Slots Evolved 6 | . . . . . 4 2 . . . Power . | . . . . . . . . . . Propulsion 2 | . . . . . 2 . . . . Utility 4 | . . . . . 2 2 . . . Weapon . | . . . . . . . . . . Parts Attached 77 | . 6 1 1 1 18 19 8 . 23 Power 7 | . 1 . . . 2 2 . . 2 Engine 6 | . 1 . . . 1 2 . . 2 Core 1 | . . . . . 1 . . . . Reactor . | . . . . . . . . . . Propulsion 21 | . 1 1 . 1 4 4 2 . 8 Treads 2 | . . . . . . . . . 2 Leg 19 | . 1 1 . 1 4 4 2 . 6 Wheel . | . . . . . . . . . . Hover . | . . . . . . . . . . Flight . | . . . . . . . . . . Utility 30 | . 2 . . . 7 10 5 . 6 Device 10 | . . . . . 2 4 2 . 2 Storage 2 | . 1 . . . . . 1 . . Processor 5 | . 1 . . . 1 3 . . . Hackware 2 | . . . . . . . . . 2 Protection 11 | . . . . . 4 3 2 . 2 Artifact . | . . . . . . . . . . Weapon 19 | . 2 . 1 . 5 3 1 . 7 Energy Gun 8 | . 2 . 1 . 3 1 . . 1 Energy Cannon 5 | . . . . . 2 1 . . 2 Ballistic Gun 1 | . . . . . . . . . 1 Ballistic Cannon 1 | . . . . . . 1 . . . Launcher . | . . . . . . . . . . Special Weapon 4 | . . . . . . . 1 . 3 Impact Weapon . | . . . . . . . . . . Slashing Weapon . | . . . . . . . . . . Piercing Weapon . | . . . . . . . . . . Special Melee Weapon . | . . . . . . . . . . Unidentified Prototypes 3 | . . . . . 2 1 . . . Parts Lost 18 | . . . . . 3 3 . 1 11 Power 1 | . . . . . . 1 . . . Propulsion 8 | . . . . . 1 2 . 1 4 Utility 4 | . . . . . 1 . . . 3 Weapon 5 | . . . . . 1 . . . 4 Highest Loss Streak 5 | . . . . . 1 2 . 1 5 To Critical Strikes 1 | . . . . . 1 . . . . Average Slot Usage (%) 92 | . 96 100 93 85 84 94 100 95 85 Engine 9 | . 14 14 14 14 7 6 7 7 6 Leg 25 | . 28 28 28 28 29 26 30 25 17 Device 5 | . . . . . 1 8 11 7 8 Storage 9 | . 14 14 14 14 9 7 7 7 6 Processor 13 | . 10 14 14 14 8 16 15 15 14 Protection 8 | . . . . . 17 11 10 15 12 Energy Gun 10 | . 27 28 21 14 8 . 7 7 5 Energy Cannon 2 | . . . . . 1 13 3 . 2 Special Weapon 2 | . . . . . . . 3 7 4 Naked Turns 18 | . . . . . . . . . 18 Heaviest Build 58 | 11 28 28 33 33 50 57 53 49 58 Greatest Support 80 | 20 20 20 20 28 60 57 53 53 80 Greatest Overweight (x) 16 | . 1 1 1 1 1 1 1 1 16 Average Overweight (x) . | . . 1 1 1 . . . . . Largest Inventory Capacity 15 | . 15 15 15 15 15 15 15 15 15 Average Capacity 14 | . 14 15 15 15 15 15 15 15 14 Most Carried 15 | . 15 11 15 15 15 15 15 15 15 Average Carried 14 | . 10 11 14 14 14 14 15 15 14 Final Capacity 15 | 8 15 15 15 15 15 15 15 15 5 Final Carried 15 | 6 11 11 15 15 14 15 15 15 5 Class Distribution -------------------- 68% | Mutant 26% | Scavenger-Mutant 5% | Derelict-Mutant Dominant Class ---------------- Mutant | -10/Materials Mutant | -10/Mines Mutant | -10/Exiles Mutant | -9/Mines Mutant | -8/Materials Mutant | -7/Factory Scavenger-Mutant | -7/Lower Caves Mutant | -7/Lower Caves Mutant | -7/Zion Resources | -11 -10 -10 -10 -9 -8 -7 -7 -7 -7 ----------- Run | Yrd Mat Min Exi Min Mat Fac Low Low Zio Matter Collected 997 | 200 126 33 . 20 146 148 135 . 189 Remotely . | . . . . . . . . . . Salvage Created 2751 | . 207 43 . 436 748 559 182 115 461 Parts 152 | . 17 3 . 30 32 32 7 4 27 Haulers Intercepted . | . . . . . . . . . . Recyclers Shooed 2 | . . . . . 1 1 . . . Parts Field Recycled . | . . . . . . . . . . Retrieved Matter . | . . . . . . . . . . Parts Self-Destructed 20 | . . . . . . . 12 6 2 Prevented . | . . . . . . . . . . Kills | -11 -10 -10 -10 -9 -8 -7 -7 -7 -7 ------- Run | Yrd Mat Min Exi Min Mat Fac Low Low Zio Combat Hostiles Destroyed 59 | . 6 3 . 15 12 10 4 6 3 Guns 43 | . 6 3 . 15 11 . 3 4 1 Cannons 15 | . . . . . 1 10 1 2 1 Classes Destroyed 13 | . 3 . . 1 4 2 . . 3 Builder 2 | . . . . . 1 1 . . . Watcher 4 | . 2 . . . 2 . . . . Swarmer 23 | . 3 3 . 8 . . 3 6 . Grunt 22 | . 3 . . 5 8 5 1 . . Brawler 1 | . . . . . . 1 . . . Sentry 3 | . . . . 2 . 1 . . . Specialist 2 | . . . . . 2 . . . . Hunter 2 | . . . . . 1 1 . . . Programmer 2 | . . . . . . 2 . . . Heavy 1 | . . . . . 1 . . . . Zionite 9 | . . . . . . . . . 9 Tinkerer 3 | . . . . . . . . . 3 Mutant 3 | . . . . . . . . . 3 Best Kill Streak 9 | . 3 4 . 5 9 5 3 4 3 Combat Bots Only 6 | . 3 3 . 5 6 5 3 4 2 Max Kills in Single Turn 2 | . 2 2 . 1 1 1 1 1 1 Gunslinging 1 | . 1 . . . . . . . . Exploded . | . . . . . . . . . . Melee . | . . . . . . . . . . Uniques/NPCs Destroyed . | . . . . . . . . . . Combat | -11 -10 -10 -10 -9 -8 -7 -7 -7 -7 -------- Run | Yrd Mat Min Exi Min Mat Fac Low Low Zio Hostile Shots Fired 426 | . 39 4 . 33 41 118 30 29 132 Missed 139 | . 13 1 . 12 11 41 9 10 42 Damage Taken 4714 | . 294 23 . 216 782 917 327 298 1857 Core 883 | . 30 . . 29 118 88 75 56 487 Absorbed by Shields . | . . . . . . . . . . Redirected to Shielding 237 | . . . . . 136 38 26 18 19 Regen/Repaired (Parts) 172 | . . . . . . 172 . . . Core Remaining (%) 84 | 100 . . . 76 78 . . . . Volleys Fired 123 | . 16 3 . . 3 31 19 8 43 Largest 2 | . 2 2 . . 2 2 2 2 2 Hottest 161 | . 100 90 . . 149 160 150 150 161 Shots Fired 321 | . 32 6 . 38 59 62 28 16 80 Gun 178 | . 32 6 . 38 53 . 13 8 28 Cannon 110 | . . . . . 6 62 7 . 35 Launcher . | . . . . . . . . . . Special 33 | . . . . . . . 8 8 17 Kinetic 4 | . . . . . . 1 . . 3 Thermal 305 | . 32 6 . 38 56 52 28 16 77 Explosive . | . . . . . . . . . . Electromagnetic 12 | . . . . . 3 9 . . . Robot Hit Streak 13 | . 10 5 . 12 11 12 8 8 13 Robot Miss Streak 4 | . 3 1 . 3 2 3 4 1 3 Penetration Max . | . . . . . . . . . . Secondary Targets 2 | . 2 . . . . . . . . Max Gunslinging Chain 1 | . 1 . . . . . . . . Autonomous 91 | . . . . 38 53 . . . . Shots Hit Robots 223 | . 21 5 . 27 50 40 18 10 52 Core Hits 103 | . 11 3 . 16 22 20 6 6 19 Critical Kills 1 | . . . . . . . . . 1 Critical Parts Destroyed . | . . . . . . . . . . Critical Strikes 11 | . 3 . . . 1 . 3 . 4 Burn 9 | . 3 . . . . . 3 . 3 Meltdown 1 | . . . . . . . . . 1 Corrupt 1 | . . . . . 1 . . . . Melee Attacks . | . . . . . . . . . . Impact . | . . . . . . . . . . Slashing . | . . . . . . . . . . Piercing . | . . . . . . . . . . Sneak Attacks . | . . . . . . . . . . Combat Hostiles . | . . . . . . . . . . Follow-up Attacks . | . . . . . . . . . . Damage Inflicted 5539 | . 323 81 . 804 1457 1099 374 178 1223 Guns 3310 | . 308 74 . 790 1311 . 245 135 447 Cannons 1961 | . . . . . 138 1089 62 . 672 Explosions . | . . . . . . . . . . Melee . | . . . . . . . . . . Ramming 59 | . 15 7 . 14 8 10 . . 5 Kinetic 23 | . . . . . . . . . 23 Thermal 5203 | . 308 74 . 790 1360 924 374 178 1195 Explosive . | . . . . . . . . . . Electromagnetic 254 | . . . . . 89 165 . . . Impact . | . . . . . . . . . . Slashing . | . . . . . . . . . . Piercing . | . . . . . . . . . . Highest Corruption 9 | . . . . . 3 1 1 1 9 Average Corruption 1 | . . . . . 2 1 1 1 3 Corruption Purged . | . . . . . . . . . . Corruption Blocked . | . . . . . . . . . . Effects 21 | . . . . . 5 1 3 . 12 Message Errors 12 | . . . . . 3 1 2 . 6 Matter Fused 3 | . . . . . 1 . . . 2 Heat Flow Errors 1 | . . . . . . . 1 . . Energy Discharges 2 | . . . . . 1 . . . 1 Data Loss (minor) 2 | . . . . . . . . . 2 Data Loss (major) 1 | . . . . . . . . . 1 Overload Shots . | . . . . . . . . . . Overflow Damage 28 | . . . . . . 10 . . 18 Projectiles 28 | . . . . . . 10 . . 18 Explosions . | . . . . . . . . . . Melee . | . . . . . . . . . . Knockbacks . | . . . . . . . . . . Impact . | . . . . . . . . . . Kinetic . | . . . . . . . . . . Secondary . | . . . . . . . . . . Self-Inflicted Damage . | . . . . . . . . . . Shots . | . . . . . . . . . . Rammed 1 | . . . . . . . . . 1 Targets Rammed 14 | . 2 2 . 5 2 2 . . 1 Kicked 13 | . 2 2 . 5 2 2 . . . Crushed . | . . . . . . . . . . Highest Temperature 607 | . 396 90 . . 270 225 194 24 607 Average Temperature 117 | . 123 40 . . 141 57 21 11 168 Received Heat Transfer 997 | . 126 . . 75 54 324 36 . 382 Effects 17 | . 2 . . . . . . . 15 Shutdowns 4 | . 1 . . . . . . . 3 Energy Bleed 3 | . 1 . . . . . . . 2 Interference 1 | . . . . . . . . . 1 Matter Decay 1 | . . . . . . . . . 1 Short Circuit 2 | . . . . . . . . . 2 Damage (minor) 4 | . . . . . . . . . 4 Damage (core) 2 | . . . . . . . . . 2 Siege Activations . | . . . . . . . . . . Robots Corrupted . | . . . . . . . . . . Combat Hostiles . | . . . . . . . . . . Parts Fried 1 | . . . . . 1 . . . . Impact Corruptions . | . . . . . . . . . . Robots Melted 3 | . . . . . . . . . 3 Combat Hostiles 1 | . . . . . . . . . 1 Parts Melted 19 | . 4 1 . 2 3 1 1 2 5 Heat Transferred 10270 | . 1111 186 . 999 1765 1750 1258 542 2659 Parts Sabotaged . | . . . . . . . . . . Parts Stolen . | . . . . . . . . . . Parts Stripped . | . . . . . . . . . . Power Chain Reactions . | . . . . . . . . . . Missiles Intercepted . | . . . . . . . . . . Alert | -11 -10 -10 -10 -9 -8 -7 -7 -7 -7 ------- Run | Yrd Mat Min Exi Min Mat Fac Low Low Zio Peak Influence 319 | . 173 137 . 272 319 308 . . . Initial 109 | . . 67 . . 64 109 . . . Average 136 | . 45 136 . 141 155 165 . . . Maximum Alert Level 1 | . . . . 1 1 1 . . . Low Security (%) 80 | . 100 100 . 57 67 84 . . . Level 1 19 | . . . . 42 32 15 . . . Level 2 . | . . . . . . . . . . Level 3 . | . . . . . . . . . . Level 4 . | . . . . . . . . . . Level 5 . | . . . . . . . . . . High Security . | . . . . . . . . . . Max Security . | . . . . . . . . . . Squads Dispatched 10 | . . . . 1 5 4 . . . Investigation 5 | . . . . 1 2 2 . . . Extermination 2 | . . . . . . 2 . . . Reinforcement 3 | . . . . . 3 . . . . Assault . | . . . . . . . . . . Garrison . | . . . . . . . . . . Intercept . | . . . . . . . . . . Searches Triggered . | . . . . . . . . . . Construction Impeded 1 | . . . . . 1 . . . . Haulers Reinforced . | . . . . . . . . . . Active Scanning Responses . | . . . . . . . . . . Cargo Convoy Interrupts . | . . . . . . . . . . Stealth | -11 -10 -10 -10 -9 -8 -7 -7 -7 -7 --------- Run | Yrd Mat Min Exi Min Mat Fac Low Low Zio Distress Signals 2 | . . . . . 1 1 . . . Communications Jammed . | . . . . . . . . . . Distress Signals . | . . . . . . . . . . Times Spotted 102 | . 11 1 . 15 15 12 7 6 35 Peak Tracking Total 8 | . 3 . . 4 3 4 5 4 8 Tactical Retreats 6 | . . . . . 1 . 2 . 3 Traps | -11 -10 -10 -10 -9 -8 -7 -7 -7 -7 ------- Run | Yrd Mat Min Exi Min Mat Fac Low Low Zio Traps Triggered 3 | . . . . . 2 1 . . . Indirectly . | . . . . . . . . . . Trap Hack Attempts . | . . . . . . . . . . Triggered . | . . . . . . . . . . Disarmed . | . . . . . . . . . . Reprogrammed . | . . . . . . . . . . Reused . | . . . . . . . . . . Traps Extracted . | . . . . . . . . . . Installed . | . . . . . . . . . . Triggered 2 | . . . . . . . 2 . . Machines | -11 -10 -10 -10 -9 -8 -7 -7 -7 -7 ---------- Run | Yrd Mat Min Exi Min Mat Fac Low Low Zio Machines Disabled 1 | . . . . . . . . . 1 Max in Single Turn 1 | . . . . . . . . . 1 Machines Repaired . | . . . . . . . . . . Machines Dismantled . | . . . . . . . . . . Machines Sabotaged . | . . . . . . . . . . Overloaded Fab Kills . | . . . . . . . . . . Hacking | -11 -10 -10 -10 -9 -8 -7 -7 -7 -7 --------- Run | Yrd Mat Min Exi Min Mat Fac Low Low Zio Machines Accessed 11 | . 1 . 2 1 2 3 2 . . Terminals 3 | . 1 . . . 1 1 . . . Fabricators 1 | . . . . . . 1 . . . Repair Stations 1 | . . . . . . 1 . . . Recycling Units 1 | . . . . . 1 . . . . Scanalyzers . | . . . . . . . . . . Garrison Access . | . . . . . . . . . . Total Hacks 28 | . 4 . 2 1 6 8 7 . . Successful 20 | . 3 . 2 1 4 3 7 . . Failed 8 | . 1 . . . 2 5 . . . Catastrophic 3 | . . . . . . 3 . . . Database Lockouts . | . . . . . . . . . . Manual 8 | . . . 1 . 3 4 . . . Terminals 10 | . 4 . . . 3 3 . . . Fabricators 2 | . . . . . . 2 . . . Repair Stations 3 | . . . . . . 3 . . . Recycling Units 3 | . . . . . 3 . . . . Scanalyzers . | . . . . . . . . . . Garrison Access . | . . . . . . . . . . Terminal Hacks 14 | . 3 . 2 1 1 . 7 . . Record 7 | . . . 1 . . . 6 . . Open Door 2 | . . . . 1 . . 1 . . Level Access Points 1 | . 1 . . . . . . . . Alert Level 1 | . 1 . . . . . . . . Locate Traps 1 | . 1 . . . . . . . . Registered Components 1 | . . . . . 1 . . . . Derelict Proto ID Bank 1 | . . . 1 . . . . . . Fabricator Hacks . | . . . . . . . . . . Repair Station Hacks 2 | . . . . . . 2 . . . Scan Component 1 | . . . . . . 1 . . . Repair 1 | . . . . . . 1 . . . Recycling Unit Hacks 2 | . . . . . 2 . . . . Report Inventory 1 | . . . . . 1 . . . . Retrieve Components 1 | . . . . . 1 . . . . Scanalyzer . | . . . . . . . . . . Garrison Access Hacks . | . . . . . . . . . . Unauthorized Hacks 2 | . . . . . 1 1 . . . Terminals . | . . . . . . . . . . Fabricators . | . . . . . . . . . . Repair Stations 1 | . . . . . . 1 . . . Mechanics 1 | . . . . . . 1 . . . Recycling Units 1 | . . . . . 1 . . . . Tunnel 1 | . . . . . 1 . . . . Scanalyzers . | . . . . . . . . . . Garrison Access . | . . . . . . . . . . Data Cores Recovered . | . . . . . . . . . . Used . | . . . . . . . . . . Hacking Detections 5 | . 1 . . . 1 3 . . . Full Trace Events 3 | . . . . . 1 2 . . . Feedback Events . | . . . . . . . . . . Feedback Blocked . | . . . . . . . . . . Robot Schematics Acquired . | . . . . . . . . . . Robots Built . | . . . . . . . . . . Authchips . | . . . . . . . . . . Time . | . . . . . . . . . . Total Robot Build Rating . | . . . . . . . . . . Part Schematics Acquired . | . . . . . . . . . . Parts Built . | . . . . . . . . . . Authchips . | . . . . . . . . . . Time . | . . . . . . . . . . Total Part Build Rating . | . . . . . . . . . . Parts Repaired 1 | . . . . . . 1 . . . Time 44 | . . . . . . 44 . . . Parts Recycled . | . . . . . . . . . . Recycled Matter . | . . . . . . . . . . Retrieved Matter . | . . . . . . . . . . Retrieved Components 3 | . . . . . 3 . . . . Parts Scanalyzed . | . . . . . . . . . . Part Schematics Acquired . | . . . . . . . . . . Parts Damaged . | . . . . . . . . . . Bothacking | -11 -10 -10 -10 -9 -8 -7 -7 -7 -7 ------------ Run | Yrd Mat Min Exi Min Mat Fac Low Low Zio Used RIF Installer . | . . . . . . . . . . Robots Hacked . | . . . . . . . . . . Non-combat . | . . . . . . . . . . Combat . | . . . . . . . . . . Robot Hacks Applied . | . . . . . . . . . . Relay Couplers Released . | . . . . . . . . . . Fabnet Peak Effective % . | . . . . . . . . . . Robots Rewired . | . . . . . . . . . . Allies Hacked . | . . . . . . . . . . Hacks Repelled . | . . . . . . . . . . Allies | -11 -10 -10 -10 -9 -8 -7 -7 -7 -7 -------- Run | Yrd Mat Min Exi Min Mat Fac Low Low Zio Total Allies . | . . . . . . . . . . Largest Group . | . . . . . . . . . . Highest-Rated Group . | . . . . . . . . . . Highest-Rated Ally . | . . . . . . . . . . Total Orders . | . . . . . . . . . . Ally Attacks . | . . . . . . . . . . Total Damage . | . . . . . . . . . . Kills . | . . . . . . . . . . Allies Corrupted . | . . . . . . . . . . Allies Melted . | . . . . . . . . . . Intel | -11 -10 -10 -10 -9 -8 -7 -7 -7 -7 ------- Run | Yrd Mat Min Exi Min Mat Fac Low Low Zio Robot Analysis Total . | . . . . . . . . . . Derelict Logs Recovered 8 | . . 1 . 2 . . 3 1 1 Drone Launches . | . . . . . . . . . . Drone Recoveries . | . . . . . . . . . . Exploration | -11 -10 -10 -10 -9 -8 -7 -7 -7 -7 ------------- Run | Yrd Mat Min Exi Min Mat Fac Low Low Zio Turns Passed 5131 | . 340 343 509 440 539 633 807 391 1129 Spaces Moved 2783 | 1 155 174 265 219 303 273 604 239 550 Core 112 | . . . . . . . . . 112 Treads 42 | . . . . . . . . . 42 Legs 2629 | 1 155 174 265 219 303 273 604 239 396 Wheels . | . . . . . . . . . . Hover . | . . . . . . . . . . Flight . | . . . . . . . . . . Fastest Speed 50 | 120 120 190 190 190 115 112 120 120 50 Average Speed 162 | 120 174 190 190 190 153 178 121 151 170 Slowest Speed 850 | 120 190 190 190 190 193 190 190 190 850 Overloaded Moves . | . . . . . . . . . . Propulsion Burnouts . | . . . . . . . . . . Robots Hopped . | . . . . . . . . . . Cave-ins Triggered . | . . . . . . . . . . Exploration Rate (%) 42 | 3 36 40 62 49 24 7 74 56 70 Regions Visited 9 Branch Regions 6 Pre-discovered Areas 9 | . . 1 1 1 1 . 1 1 3 Known Exits Taken 1 | . . . . . . . 1 . . Unknown Exits Taken 8 | 1 1 1 1 1 1 1 . 1 . Scrap Searched 12 | . . 1 . 2 . . 4 2 3 Spaces Dug . | . . . . . . . . . . Terrain Destroyed 24 | . . . . 11 8 1 4 . . Melee . | . . . . . . . . . . Projectile 24 | . . . . 11 8 1 4 . . AOE . | . . . . . . . . . . Terrain Rammed . | . . . . . . . . . . Walls Destroyed . | . . . . . . . . . . Machines Disabled . | . . . . . . . . . . Actions | -11 -10 -10 -10 -9 -8 -7 -7 -7 -7 --------- Run | Yrd Mat Min Exi Min Mat Fac Low Low Zio Total 3149 | . 193 179 274 241 377 354 640 246 645 Wait 38 | . . . . 6 19 9 4 . . Move 2774 | . 154 173 264 218 302 272 603 238 550 Hop . | . . . . . . . . . . Pick Up 47 | . 8 . 5 5 14 6 1 . 8 Fast Attach 30 | . 2 . 1 . 8 9 3 . 7 Attach 15 | . . . . . 6 4 . . 5 Detach 8 | . 1 . 1 . 1 3 . . 2 Swap 32 | . 4 1 . 1 4 6 5 . 11 Drop 56 | . 6 . 3 6 18 7 5 . 11 Fire 123 | . 16 3 . . 3 31 19 8 43 Melee . | . . . . . . . . . . Ram . | . . . . . . . . . . Kick 13 | . 2 2 . 5 2 2 . . . Crush 1 | . . . . . . . . . 1 Escape Stasis 5 | . . . . . . 5 . . . Rewire 7 | . . . . . . . . . 7 Trap . | . . . . . . . . . . Miscellaneous . | . . . . . . . . . . Route ------- -11/Scrapyard -10/Materials (discovered 4 exits: Mat x3 / [*Min]) -10/Mines (discovered 3 exits: *Mat x2 / *Exi) -10/Exiles (discovered 2 exits: *Min x2) -9/Mines -8/Materials -7/Factory -7/Lower Caves -7/Lower Caves -7/Zion History --------- Turn | Location | Event 1 | -11/Scrapyard | Discovered new exit (range 0) 1 | -11/Scrapyard | Entered Materials 270 | -10/Materials | Discovered new exit (range 12) 314 | -10/Materials | Identified exit to Materials 333 | -10/Materials | Build established: Mutant 341 | -10/Materials | Entered Mines 399 | -10/Mines | Discovered exit to Materials (range 6) 493 | -10/Mines | Learned location of Storage (-8) 563 | -10/Mines | Discovered exit to Materials (range 16) 595 | -10/Mines | Discovered new exit (range 5) 677 | -10/Mines | Deemed a non-threat by the Exiles lab entrance 684 | -10/Mines | Entered Exiles 715 | -10/Exiles | Discovered new exit (range 15) 763 | -10/Exiles | Met 8R-AWN 798 | -10/Exiles | Met EX-HEX 853 | -10/Exiles | Met EX-BIN 881 | -10/Exiles | Aligned with FarCom system 883 | -10/Exiles | Given EX-Vault access code 931 | -10/Exiles | Opened EX-Vault 948 | -10/Exiles | Found Modified TNC 975 | -10/Exiles | Found AWS/Thermal 1022 | -10/Exiles | Warned to stay clear of 0b10 Research branches 1088 | -10/Exiles | Met EX-DEC 1101 | -10/Exiles | Learned location of Zion (-7) 1164 | -10/Exiles | Discovered new exit (range 10) 1193 | -10/Exiles | Left Exiles lab with AWS/Thermal 1193 | -10/Exiles | Entered Mines 1215 | -9/Mines | Met a Derelict shopkeep closing up shop 1285 | -9/Mines | Learned Materials stockpile data 1310 | -9/Mines | Received a Rocket Launcher from a helpful Derelict 1439 | -9/Mines | Learned Materials terminal intel 1607 | -9/Mines | Discovered new exit (range 9) 1633 | -9/Mines | Entered Materials 1633 | -8/Materials | Evolved 4 slots: Propulsion x2, Utility x2 1635 | -8/Materials | Loaded intel: 10 terminal locations 2027 | -8/Materials | Discovered new exit (range 8) 2172 | -8/Materials | Entered Factory 2172 | -7/Factory | Evolved 2 slots: Utility x2 2311 | -7/Factory | Repaired Lyr. Light Armor Plating 2775 | -7/Factory | Discovered new exit (range 13) 2805 | -7/Factory | Entered Lower Caves 2933 | -7/Lower Caves | Build established: Scavenger-Mutant 3003 | -7/Lower Caves | Attracted the attention of an 0b10 outpost 3113 | -7/Lower Caves | Identified exit to Lower Caves 3280 | -7/Lower Caves | Learned location of Extension (-6) 3280 | -7/Lower Caves | Learned Research trap positions 3280 | -7/Lower Caves | Learned Factory emergency access door positions 3421 | -7/Lower Caves | Learned Factory terminal intel 3525 | -7/Lower Caves | Encountered a Warlord checkpoint 3612 | -7/Lower Caves | Entered another Lower Caves area 3970 | -7/Lower Caves | Discovered new exit (range 14) 4003 | -7/Lower Caves | Entered Zion 4057 | -7/Zion | Given A8's code to call for help 4073 | -7/Zion | Build established: Mutant 4098 | -7/Zion | System corruption cleaned by Quarantine Array 4192 | -7/Zion | Learned location of Data Miner (-6) 4228 | -7/Zion | Found Relay Coupler [Programmer] 4231 | -7/Zion | Found Relay Coupler [Programmer] 4233 | -7/Zion | Found Relay Coupler [Programmer] 4241 | -7/Zion | Found Relay Coupler [Programmer] 4259 | -7/Zion | Learned location of Quarantine (-2) 4304 | -7/Zion | Learned location of Warlord (-5) 4378 | -7/Zion | Given the Hacking Drone Bay 4379 | -7/Zion | Found Prototype Device 4706 | -7/Zion | Rebuked by Imprinter 4719 | -7/Zion | Attacked by Zionites 4786 | -7/Zion | Lost 5 parts (3n1u1w) 5057 | -7/Zion | Core integrity fell below 50% 5069 | -7/Zion | Core integrity fell below 20% 5071 | -7/Zion | Released all parts (11) 5102 | -7/Zion | Lost 3 parts (1n1u1w) 5106 | -7/Zion | Learned location of 1 exit from Factory 5132 | -7/Zion | Destroyed by UC-CIH(z) with Makeshift Hammer Last Messages --------------- 7K-AUH(z) bursts out of the Twisted Machinery. 05098_ 7K-AUH(z) pulls a Mak. Laser out of the Twisted Machinery. 05099_ C1-XXC(z) pulls a Mak. Spear out of the Twisted Machinery. 05104_ 7E-92P(z) scatters some of the Twisted Machinery. 05105_ FF-RV4(z) pulls a Mak. Axe out of the Twisted Machinery. 05106_ Acquired derelict log, extracted data. Data stored: Factory exits (x1). 05109_ Searching scrap... 05109_ Found Imp. Terrain Scan Processor. 05109_ Found Flamer. 05109_ Found 24 Matter. 05116_ Acquired 24 matter. 05121_ System corrupted: Energy discharge (-38). 05125_ DT-5G5(z) pulls a Mak. Hammer out of the Twisted Machinery. 05127_ YJ-7TH(z) pulls a Mak. Hammer out of the Twisted Machinery. 05129_ JT-HIE(z) pulls a Mak. Laser out of the Twisted Machinery. 05129_ Mak. Shrapnel Gun destroyed. GN-U24(z) bursts out of the Twisted Machinery. 05131_ UC-CIH(z) pulls a Mak. Hammer out of the Twisted Machinery. 05132_ GN-U24(z) pulls a Mak. Shrapnel Gun out of the Twisted Machinery. Map ----- +----------------------------------------------------+ | "" """" ? """" | | """""? ??? | | """" ""#"" ? ??????? | | """"#""" """"" ??? ?????????? | | ""###"""" """" ?????????????????""" | | ###?####" """"" ??????????????????? | | ????##""" """""" ?????????????????? "" | | ????#""" "" "" ?????????????????? """ | | ????##"" "" ?????????????????????""?"" " | | ?????#"" "" ????????????????????????"""" | | ?????#"""" """" ? ???????????????????????? | | ?????###"" """" ???????????????????????? | | ??????##"" """" "??????????????????????? | | ????#"#"" """" "" ?????????????????? | | ????#""" """" ?????????????????? | | ????#"" ""#""? ??????????????????? | | ???##" ""##"" """????????????????? | | ???""" "##"""" """#???????????????? | | ???##" "###""" """???????????????? | | ???#""""" """"" "#???????????????? | | ???##""#" """" "????????????????? | | ????####" " """???????????????? | | ####??##" """" " """"???????????????? | | "#"####"""" """" """ """#???????????????? | | ""#""##""""""""" """ z ""##??????????????? | | """"""""" "#"" "" @ ""#??????????????? | | """""" %=" ""! " """#??????????????? | | [% z! """"""#"#??????????????? | | *=/ / """"""#????????????????? | | /** %"""" "" "" " ""##???????????????? | | %""#"" == """""" """"#???????????????? | | =""###"""=!!| "" "#"""" z """###???????????????? | | ""#?##""*=!]""" "###"" """"#?????????????????? | | ""#??##"!=!!""""""#"#" ""###??????????????#### | | "##??#""]* """""""""" z z#"#????############""" | | ""#??#"" """""""" ""########""""##"##"#""" | | ""#??##" "##" """"""""#"#"#"""""#"""" | | ""#???#""" ""#" " """""""""""""""""""""" | | ""#??#"#""" """" "" | ! | | #"#??###""" "" | | #""#?#""""" "" | | #?##??#"""" """"""""""""" "" | | #?????#" """""""""" "" | | #?????#" """"""#" """ """ | | ##????##" "##""#"" """"""""""" "" | | ??????"""" """" """###"""""##"""""""""" "" | | ??????##""" """" "###??#"#"#""""" """" """ | | ???????###""" ""#########"" """ | | ?????????#"""" """"""""""" ####" | | ?????????#""" """##"""" " #""" [ | +----------------------------------------------------+ Best States ------------- Heat Dissipation 61 Energy Generation 18 Energy Capacity 300 Matter Stores 300 Matter Capacity 300 Sight Range 16 Terrain Scan Density 10 ECM Strength 2 Armor Coverage 300 Propulsion Shielding 66 Utility Shielding 66 Evasion (%) 55 Targeting Accuracy 14 Armor Integrity Analysis 30 Recoil Reduction 2 Particle Charging 15 Offensive Hacking 10 Defensive Hacking 10 Item Schematics ----------------- None Robot Schematics ------------------ None Fabricated ------------ Nothing Alien Tech Used ----------------- None Achievements -------------- None Challenges ------------ None Game ------ Seed WaveElectronActivator Manual? 0 Play Time 00:31:16 Cumulative 606.4 hours Start 2024.01.20 @ 16:19:04 End 2024.01.20 @ 16:47:38 Sessions 1 Manual Loads 0 Difficulty Rogue Special Mode None Game No. 547 Rogue 274 Adventurer 123 Explorer 150 Win Type - Total 25 Types 19/0/4/1/0/0/0/1/0 Lore% 79 Gallery% 90 Achievement% 75 Wizard Run 0 Options --------- ASCII 0 Keyboard 1 Movement Numpad Keybinds 0 Fullscreen 2 Font 18/X11Bold Map View 76x50 Zoom Use 1% Tactical HUD 1 Map Filters NONE Filters NONE Steam 1 RUN: 94aafa1e-5420-4624-9d20-d7caa71676db